[Event "Early-Titled-Tuesday-Blitz-March-12-2024"]
[Site "Chess.com"]
[Date "2024.03.12"]
[Round "2"]
[White "Veleamater"]
[Black "SharapovEvgeny"]
[Result "1-0"]
[WhiteElo "2300"]
[BlackElo "2525"]
[TimeControl "180+1"]
[EndTime "8:15:55 PDT"]
[Termination "Veleamater won by resignation"]

1. g3 {[%clk 0:02:42.2]} 1... c5 {[%clk 0:02:58.8]} 2. Bg2 {[%clk 0:02:41.6]}
2... Nc6 {[%clk 0:02:58.7]} 3. d3 {[%clk 0:02:42.5]} 3... g6 {[%clk 0:02:58.8]}
4. Nf3 {[%clk 0:02:43.4]} 4... Bg7 {[%clk 0:02:59.3]} 5. O-O {[%clk 0:02:44]}
5... e5 {[%clk 0:02:59.2]} 6. Nc3 {[%clk 0:02:44.9]} 6... Nge7 {[%clk
0:02:59.1]} 7. e4 {[%clk 0:02:45.8]} 7... O-O {[%clk 0:02:58.8]} 8. h3 {[%clk
0:02:45.5]} 8... d6 {[%clk 0:02:58.9]} 9. a4 {[%clk 0:02:45.6]} 9... Rb8 {[%clk
0:02:58.7]} 10. Nd2 {[%clk 0:02:44.8]} 10... a6 {[%clk 0:02:58.6]} 11. f4 {[%clk
0:02:44.6]} 11... b5 {[%clk 0:02:58.5]} 12. axb5 {[%clk 0:02:37.4]} 12... axb5
{[%clk 0:02:58.2]} 13. Nd5 {[%clk 0:02:33.8]} 13... Nxd5 {[%clk 0:02:57.5]} 14.
exd5 {[%clk 0:02:33.7]} 14... Nd4 {[%clk 0:02:56.5]} 15. c3 {[%clk 0:02:28.8]}
15... Nf5 {[%clk 0:02:55.7]} 16. Ne4 {[%clk 0:02:27.9]} 16... Bb7 {[%clk
0:02:45.4]} 17. fxe5 {[%clk 0:02:23.6]} 17... Bxe5 {[%clk 0:02:44.7]} 18. g4
{[%clk 0:02:23]} 18... Nh4 {[%clk 0:02:41.5]} 19. Bg5 {[%clk 0:02:19.6]} 19...
Nxg2 {[%clk 0:02:33.1]} 20. Bxd8 {[%clk 0:02:17]} 20... Ne3 {[%clk 0:02:32.9]}
21. Qf3 {[%clk 0:02:12.2]} 21... Nxf1 {[%clk 0:02:31.8]} 22. Bf6 {[%clk
0:02:10.5]} 22... Nh2 {[%clk 0:02:27.1]} 23. Qf1 {[%clk 0:02:04.3]} 23... Bxd5
{[%clk 0:02:19.2]} 24. Bxe5 {[%clk 0:01:36.6]} 24... Bxe4 {[%clk 0:02:19.1]} 25.
dxe4 {[%clk 0:01:36.1]} 25... dxe5 {[%clk 0:02:18]} 26. Kxh2 {[%clk 0:01:35.2]}
26... Rfd8 {[%clk 0:02:17.6]} 27. Rd1 {[%clk 0:01:34.3]} 27... b4 {[%clk
0:02:17.5]} 28. Rxd8+ {[%clk 0:01:30.1]} 28... Rxd8 {[%clk 0:02:17.3]} 29. Qe2
{[%clk 0:01:21.7]} 29... bxc3 {[%clk 0:02:16.8]} 30. bxc3 {[%clk 0:01:21.3]}
30... Kg7 {[%clk 0:02:16.9]} 31. Qc4 {[%clk 0:01:20.2]} 31... Rd2+ {[%clk
0:02:07.7]} 32. Kg3 {[%clk 0:01:19.9]} 32... f6 {[%clk 0:02:05.2]} 33. h4 {[%clk
0:01:19.3]} 33... h6 {[%clk 0:02:04.8]} 34. g5 {[%clk 0:01:18]} 34... hxg5
{[%clk 0:02:04.6]} 35. hxg5 {[%clk 0:01:18.3]} 35... fxg5 {[%clk 0:02:05.3]} 36.
Qxc5 {[%clk 0:01:18.2]} 36... Rd3+ {[%clk 0:02:03.2]} 37. Kg4 {[%clk 0:01:12.6]}
37... Kf6 {[%clk 0:02:03.4]} 38. Qc6+ {[%clk 0:01:11.1]} 38... Kg7 {[%clk
0:02:01.7]} 39. Qc7+ {[%clk 0:01:10.3]} 39... Kf6 {[%clk 0:02:01.6]} 40. Qb6+
{[%clk 0:01:07.9]} 40... Kg7 {[%clk 0:01:59.6]} 41. Qb7+ {[%clk 0:01:08.1]}
41... Kh6 {[%clk 0:01:57.8]} 42. Qe7 {[%clk 0:01:05.7]} 42... Rxc3 {[%clk
0:01:50.2]} 43. Qxg5+ {[%clk 0:01:05.2]} 43... Kg7 {[%clk 0:01:49.8]} 44. Qe7+
{[%clk 0:01:04.7]} 44... Kh6 {[%clk 0:01:49.8]} 45. Qxe5 {[%clk 0:01:04.7]}
45... Rc8 {[%clk 0:01:45]} 46. Qg5+ {[%clk 0:01:02]} 46... Kg7 {[%clk
0:01:44.2]} 47. Qe7+ {[%clk 0:01:02.1]} 47... Kh6 {[%clk 0:01:43.7]} 48. Qd7
{[%clk 0:01:00.7]} 48... Rf8 {[%clk 0:01:39.6]} 49. e5 {[%clk 0:00:59]} 49...
Rf5 {[%clk 0:01:37.7]} 50. e6 {[%clk 0:00:59.1]} 50... Rg5+ {[%clk 0:01:36.9]}
51. Kf4 {[%clk 0:00:58.6]} 51... Rf5+ {[%clk 0:01:37.4]} 52. Ke4 {[%clk
0:00:58.7]} 1-0

[Event "Early-Titled-Tuesday-Blitz-March-12-2024"]
[Site "Chess.com"]
[Date "2024.03.12"]
[Round "2"]
[White "VOneChess"]
[Black "jaskol95"]
[Result "0-1"]
[WhiteElo "2326"]
[BlackElo "2567"]
[TimeControl "180+1"]
[EndTime "8:15:59 PDT"]
[Termination "jaskol95 won by resignation"]

1. e4 {[%clk 0:03:00.9]} 1... c5 {[%clk 0:02:58.6]} 2. Nf3 {[%clk 0:03:01.5]}
2... e6 {[%clk 0:02:59.1]} 3. d4 {[%clk 0:03:02.2]} 3... cxd4 {[%clk 0:03:00]}
4. Nxd4 {[%clk 0:03:03.1]} 4... Nc6 {[%clk 0:03:00.6]} 5. Nc3 {[%clk 0:03:03.5]}
5... Qc7 {[%clk 0:03:01.2]} 6. f4 {[%clk 0:03:04.1]} 6... a6 {[%clk 0:03:00.6]}
7. Nxc6 {[%clk 0:03:04.2]} 7... Qxc6 {[%clk 0:02:58.5]} 8. Be3 {[%clk
0:03:01.5]} 8... b5 {[%clk 0:02:58.5]} 9. Bd3 {[%clk 0:02:59.2]} 9... Bb7 {[%clk
0:02:58.7]} 10. O-O {[%clk 0:02:58.6]} 10... Nf6 {[%clk 0:02:57.6]} 11. a3
{[%clk 0:02:43.4]} 11... b4 {[%clk 0:02:57.9]} 12. axb4 {[%clk 0:02:43.4]} 12...
Bxb4 {[%clk 0:02:58.8]} 13. Rf2 {[%clk 0:02:22.5]} 13... Bxc3 {[%clk 0:02:54.1]}
14. bxc3 {[%clk 0:02:23.4]} 14... Nxe4 {[%clk 0:02:54.3]} 15. Bxe4 {[%clk
0:02:23.6]} 15... Qxe4 {[%clk 0:02:54.6]} 16. Bc5 {[%clk 0:02:24.3]} 16... Qd5
{[%clk 0:02:44]} 17. Bd4 {[%clk 0:02:24.1]} 17... O-O {[%clk 0:02:41.2]} 18. Qg4
{[%clk 0:02:17.8]} 18... f6 {[%clk 0:02:39]} 19. Re1 {[%clk 0:02:05.6]} 19... a5
{[%clk 0:02:32]} 20. Rf3 {[%clk 0:01:59.3]} 20... a4 {[%clk 0:02:08.7]} 21. Rg3
{[%clk 0:01:59]} 21... g6 {[%clk 0:02:07.5]} 22. h4 {[%clk 0:01:52.2]} 22... a3
{[%clk 0:01:42.6]} 23. h5 {[%clk 0:01:51.9]} 23... a2 {[%clk 0:01:40.2]} 24.
hxg6 {[%clk 0:01:50.6]} 24... h5 {[%clk 0:01:39]} 25. Qh4 {[%clk 0:00:54.3]}
25... a1=Q {[%clk 0:01:33.1]} 26. Rxa1 {[%clk 0:00:52.4]} 26... Rxa1+ {[%clk
0:01:32.8]} 27. Kh2 {[%clk 0:00:53.3]} 27... Qf5 {[%clk 0:01:24.8]} 28. Rg5
{[%clk 0:00:51]} 28... fxg5 {[%clk 0:01:00.5]} 29. Qxh5 {[%clk 0:00:51]} 29...
Qxf4+ {[%clk 0:01:01.1]} 0-1

[Event "Early-Titled-Tuesday-Blitz-March-12-2024"]
[Site "Chess.com"]
[Date "2024.03.12"]
[Round "2"]
[White "nelsi"]
[Black "Peng_Li-Min"]
[Result "0-1"]
[WhiteElo "2434"]
[BlackElo "2803"]
[TimeControl "180+1"]
[EndTime "8:16:00 PDT"]
[Termination "Peng_Li-Min won on time"]

1. e4 {[%clk 0:02:59.7]} 1... Nc6 {[%clk 0:02:58.4]} 2. Nf3 {[%clk 0:02:58.2]}
2... d5 {[%clk 0:02:54.3]} 3. exd5 {[%clk 0:02:52.8]} 3... Qxd5 {[%clk
0:02:55.2]} 4. Nc3 {[%clk 0:02:52.5]} 4... Qh5 {[%clk 0:02:55.1]} 5. Be2 {[%clk
0:02:46.6]} 5... Bg4 {[%clk 0:02:54.2]} 6. d3 {[%clk 0:02:41.3]} 6... e5 {[%clk
0:02:51.7]} 7. Be3 {[%clk 0:02:40.8]} 7... f5 {[%clk 0:02:51]} 8. h3 {[%clk
0:01:56.3]} 8... O-O-O {[%clk 0:02:49.6]} 9. O-O {[%clk 0:01:42.4]} 9... Nf6
{[%clk 0:02:44.1]} 10. hxg4 {[%clk 0:01:29.4]} 10... Nxg4 {[%clk 0:02:44]} 11.
Qc1 {[%clk 0:00:41.4]} 11... Rd6 {[%clk 0:01:53.8]} 12. Re1 {[%clk 0:00:13.7]}
12... Rg6 {[%clk 0:01:49.3]} 13. g3 {[%clk 0:00:12.7]} 13... f4 {[%clk
0:01:15.4]} 14. Bd2 {[%clk 0:00:06.6]} 14... Nxf2 {[%clk 0:01:06.7]} 15. Kxf2
{[%clk 0:00:05.6]} 15... Bc5+ {[%clk 0:01:06.2]} 16. d4 {[%clk 0:00:05.6]} 16...
Nxd4 {[%clk 0:01:05.2]} 17. Nxd4 {[%clk 0:00:03.5]} 17... Bxd4+ {[%clk
0:01:06.1]} 0-1

[Event "Early-Titled-Tuesday-Blitz-March-12-2024"]
[Site "Chess.com"]
[Date "2024.03.12"]
[Round "2"]
[White "santosalberto1987"]
[Black "EpicPlayz282"]
[Result "1-0"]
[WhiteElo "2567"]
[BlackElo "2332"]
[TimeControl "180+1"]
[EndTime "8:16:01 PDT"]
[Termination "santosalberto1987 won by resignation"]

1. e4 {[%clk 0:03:00.9]} 1... e5 {[%clk 0:02:57]} 2. Nf3 {[%clk 0:03:00.9]} 2...
Nc6 {[%clk 0:02:50.8]} 3. Bc4 {[%clk 0:03:01.1]} 3... Bc5 {[%clk 0:02:47.6]} 4.
O-O {[%clk 0:03:00.8]} 4... Nf6 {[%clk 0:02:47.3]} 5. d4 {[%clk 0:03:00.8]} 5...
exd4 {[%clk 0:02:47.6]} 6. e5 {[%clk 0:03:01]} 6... d5 {[%clk 0:02:43.1]} 7.
exf6 {[%clk 0:02:58.1]} 7... dxc4 {[%clk 0:02:43.4]} 8. fxg7 {[%clk 0:02:58.6]}
8... Rg8 {[%clk 0:02:43.6]} 9. Nbd2 {[%clk 0:02:54.1]} 9... Be6 {[%clk
0:02:22.8]} 10. Ne4 {[%clk 0:02:52.9]} 10... Be7 {[%clk 0:02:15.3]} 11. Bg5
{[%clk 0:02:46.3]} 11... Qd5 {[%clk 0:02:03.5]} 12. Bxe7 {[%clk 0:02:40.1]}
12... Qxe4 {[%clk 0:02:00.4]} 13. Ng5 {[%clk 0:02:12.6]} 13... Qg6 {[%clk
0:01:52.6]} 14. Nxe6 {[%clk 0:02:08.6]} 14... fxe6 {[%clk 0:01:49.6]} 15. Bh4
{[%clk 0:02:05.9]} 15... Rxg7 {[%clk 0:01:47.6]} 16. g3 {[%clk 0:02:04.6]} 16...
Qg4 {[%clk 0:01:11.9]} 17. Bf6 {[%clk 0:01:51.4]} 17... Qxd1 {[%clk 0:01:04.6]}
18. Raxd1 {[%clk 0:01:52.3]} 18... Rd7 {[%clk 0:01:04.7]} 19. g4 {[%clk
0:01:48]} 19... Kf7 {[%clk 0:01:04.2]} 20. g5 {[%clk 0:01:48.3]} 20... e5 {[%clk
0:00:53.2]} 21. h4 {[%clk 0:01:45.3]} 21... e4 {[%clk 0:00:37]} 22. Rfe1 {[%clk
0:01:40.3]} 22... Re8 {[%clk 0:00:34.8]} 23. Kg2 {[%clk 0:01:40.5]} 23... h6
{[%clk 0:00:31.8]} 24. Kg3 {[%clk 0:01:39.7]} 24... Rd5 {[%clk 0:00:19.4]} 25.
Kf4 {[%clk 0:01:37.6]} 25... d3 {[%clk 0:00:19.5]} 26. Rxe4 {[%clk 0:01:31.8]}
26... Rxe4+ {[%clk 0:00:18.9]} 27. Kxe4 {[%clk 0:01:31.7]} 27... dxc2 {[%clk
0:00:19.4]} 28. Rc1 {[%clk 0:01:32]} 28... Rd2 {[%clk 0:00:19.4]} 29. Ke3 {[%clk
0:01:32.2]} 29... Rd3+ {[%clk 0:00:19.9]} 30. Ke2 {[%clk 0:01:32.1]} 30... Nb4
{[%clk 0:00:20.2]} 31. a3 {[%clk 0:01:31.4]} 31... Nd5 {[%clk 0:00:19.8]} 32.
Rxc2 {[%clk 0:01:28.7]} 32... hxg5 {[%clk 0:00:19.3]} 33. Bxg5 {[%clk
0:01:28.3]} 33... Nf4+ {[%clk 0:00:20.1]} 34. Bxf4 {[%clk 0:01:28.3]} 1-0

[Event "Early-Titled-Tuesday-Blitz-March-12-2024"]
[Site "Chess.com"]
[Date "2024.03.12"]
[Round "2"]
[White "venturov"]
[Black "FischerKasparow"]
[Result "1-0"]
[WhiteElo "2487"]
[BlackElo "2085"]
[TimeControl "180+1"]
[EndTime "8:16:01 PDT"]
[Termination "venturov won by resignation"]

1. e4 {[%clk 0:03:00.9]} 1... c5 {[%clk 0:01:35.8]} 2. Nf3 {[%clk 0:03:00.3]}
2... Nc6 {[%clk 0:01:35.7]} 3. d4 {[%clk 0:03:00.3]} 3... cxd4 {[%clk
0:01:36.6]} 4. Nxd4 {[%clk 0:03:01.2]} 4... g6 {[%clk 0:01:36.9]} 5. Bc4 {[%clk
0:03:00.5]} 5... Bg7 {[%clk 0:01:36.8]} 6. Nb3 {[%clk 0:03:00.9]} 6... Nf6
{[%clk 0:01:37.2]} 7. Nc3 {[%clk 0:03:00.6]} 7... O-O {[%clk 0:01:38.1]} 8. O-O
{[%clk 0:03:01.1]} 8... a6 {[%clk 0:01:37.4]} 9. Re1 {[%clk 0:03:00.2]} 9... b5
{[%clk 0:01:37.4]} 10. Bf1 {[%clk 0:03:00.9]} 10... Bb7 {[%clk 0:01:37.4]} 11.
a4 {[%clk 0:03:00.9]} 11... bxa4 {[%clk 0:01:33.7]} 12. Rxa4 {[%clk 0:02:54.4]}
12... d6 {[%clk 0:01:33.8]} 13. Bg5 {[%clk 0:02:53.9]} 13... Nd7 {[%clk
0:01:33.6]} 14. Nd5 {[%clk 0:02:27.3]} 14... h6 {[%clk 0:01:33]} 15. Bh4 {[%clk
0:02:17.8]} 15... a5 {[%clk 0:01:32.5]} 16. c3 {[%clk 0:02:13.9]} 16... g5
{[%clk 0:01:31.7]} 17. Bg3 {[%clk 0:02:13.9]} 17... Nde5 {[%clk 0:01:30]} 18.
Nd4 {[%clk 0:02:08.5]} 18... e6 {[%clk 0:01:28.7]} 19. Ne3 {[%clk 0:02:01.8]}
19... Qe7 {[%clk 0:01:27.5]} 20. Nb5 {[%clk 0:01:55.6]} 20... Rfd8 {[%clk
0:01:26.8]} 21. Qh5 {[%clk 0:01:38.2]} 21... Rab8 {[%clk 0:01:26.2]} 22. h4
{[%clk 0:01:35]} 22... Ba6 {[%clk 0:01:22.5]} 23. Nd4 {[%clk 0:01:26.7]} 23...
Bxf1 {[%clk 0:01:20.4]} 24. Rxf1 {[%clk 0:01:27.6]} 24... Bf6 {[%clk 0:01:09.5]}
25. Nxc6 {[%clk 0:01:02.2]} 25... Nxc6 {[%clk 0:01:08.8]} 26. Ng4 {[%clk
0:00:59.4]} 26... Bg7 {[%clk 0:01:08]} 27. Nxh6+ {[%clk 0:00:58.2]} 27... Bxh6
{[%clk 0:01:08.5]} 28. Qxh6 {[%clk 0:00:59.1]} 28... gxh4 {[%clk 0:01:05.5]} 29.
Bxh4 {[%clk 0:00:58.2]} 29... Qf8 {[%clk 0:01:06]} 30. Qg5+ {[%clk 0:00:50.8]}
30... Kh7 {[%clk 0:01:05.8]} 31. Qh5+ {[%clk 0:00:50.8]} 31... Kg8 {[%clk
0:01:05.3]} 32. Bf6 {[%clk 0:00:49.3]} 1-0

[Event "Early-Titled-Tuesday-Blitz-March-12-2024"]
[Site "Chess.com"]
[Date "2024.03.12"]
[Round "2"]
[White "David_George21"]
[Black "DrCeltic"]
[Result "0-1"]
[WhiteElo "2296"]
[BlackElo "2547"]
[TimeControl "180+1"]
[EndTime "8:16:04 PDT"]
[Termination "DrCeltic won on time"]

1. e4 {[%clk 0:03:00.9]} 1... c5 {[%clk 0:02:59.7]} 2. Nf3 {[%clk 0:03:00.4]}
2... e6 {[%clk 0:03:00.1]} 3. d4 {[%clk 0:03:00.3]} 3... cxd4 {[%clk 0:03:01]}
4. Nxd4 {[%clk 0:03:00.7]} 4... Nf6 {[%clk 0:03:01.5]} 5. Bd3 {[%clk 0:02:50.9]}
5... Nc6 {[%clk 0:03:00.9]} 6. Nxc6 {[%clk 0:02:47.5]} 6... bxc6 {[%clk
0:03:01.8]} 7. O-O {[%clk 0:02:47.4]} 7... d5 {[%clk 0:03:02.2]} 8. e5 {[%clk
0:02:47.2]} 8... Nd7 {[%clk 0:03:02.6]} 9. f4 {[%clk 0:02:41.2]} 9... Ba6 {[%clk
0:03:00.2]} 10. Bxa6 {[%clk 0:02:35.8]} 10... Qb6+ {[%clk 0:02:59.9]} 11. Kh1
{[%clk 0:02:35]} 11... Qxa6 {[%clk 0:03:00.8]} 12. Nd2 {[%clk 0:02:14.3]} 12...
Be7 {[%clk 0:02:48.8]} 13. Nf3 {[%clk 0:02:11.5]} 13... O-O {[%clk 0:02:46.9]}
14. Be3 {[%clk 0:02:12]} 14... Rab8 {[%clk 0:02:42.7]} 15. b3 {[%clk 0:02:09]}
15... Bc5 {[%clk 0:02:29]} 16. Bxc5 {[%clk 0:02:01.1]} 16... Nxc5 {[%clk
0:02:29.9]} 17. g4 {[%clk 0:01:38.1]} 17... Ne4 {[%clk 0:02:27.4]} 18. f5 {[%clk
0:01:34.4]} 18... f6 {[%clk 0:02:20.6]} 19. fxe6 {[%clk 0:01:02.6]} 19... Rbe8
{[%clk 0:02:09.9]} 20. c4 {[%clk 0:00:31.7]} 20... fxe5 {[%clk 0:02:00.7]} 21.
cxd5 {[%clk 0:00:30.1]} 21... cxd5 {[%clk 0:01:45.2]} 22. Qxd5 {[%clk 0:00:14]}
22... Nf6 {[%clk 0:01:45.4]} 23. Qxe5 {[%clk 0:00:12.5]} 23... Nxg4 {[%clk
0:01:41.7]} 24. Qg3 {[%clk 0:00:10.6]} 24... Ne3 {[%clk 0:01:33.4]} 25. Rg1
{[%clk 0:00:07.5]} 25... Nf5 {[%clk 0:01:33.8]} 26. Qg5 {[%clk 0:00:03.4]} 26...
Qxe6 {[%clk 0:01:33]} 27. Raf1 {[%clk 0:00:03.1]} 27... h6 {[%clk 0:01:32.4]}
0-1

[Event "Early-Titled-Tuesday-Blitz-March-12-2024"]
[Site "Chess.com"]
[Date "2024.03.12"]
[Round "2"]
[White "elmusmolamas"]
[Black "matagordo"]
[Result "0-1"]
[WhiteElo "2507"]
[BlackElo "2251"]
[TimeControl "180+1"]
[EndTime "8:16:05 PDT"]
[Termination "matagordo won by checkmate"]

1. e4 {[%clk 0:03:00.9]} 1... e6 {[%clk 0:02:59.8]} 2. Nf3 {[%clk 0:02:43.5]}
2... d5 {[%clk 0:02:59.9]} 3. d3 {[%clk 0:02:44.2]} 3... Nf6 {[%clk 0:02:58.5]}
4. Nbd2 {[%clk 0:02:43.9]} 4... Nc6 {[%clk 0:02:58.4]} 5. g3 {[%clk 0:02:42.7]}
5... dxe4 {[%clk 0:02:58.4]} 6. dxe4 {[%clk 0:02:42.5]} 6... e5 {[%clk
0:02:58.5]} 7. Bg2 {[%clk 0:02:42.3]} 7... Bc5 {[%clk 0:02:59.1]} 8. O-O {[%clk
0:02:42.6]} 8... O-O {[%clk 0:02:59.5]} 9. c3 {[%clk 0:02:35.7]} 9... a5 {[%clk
0:02:59.2]} 10. Qc2 {[%clk 0:02:36.1]} 10... b6 {[%clk 0:02:58.5]} 11. Rd1
{[%clk 0:02:35.5]} 11... Ng4 {[%clk 0:02:58.6]} 12. Nf1 {[%clk 0:02:30.1]} 12...
Bxf2+ {[%clk 0:02:50.9]} 13. Kh1 {[%clk 0:02:27]} 13... Qe8 {[%clk 0:02:48.7]}
14. h3 {[%clk 0:02:27.1]} 14... f5 {[%clk 0:02:49.4]} 15. hxg4 {[%clk
0:02:16.8]} 15... fxg4 {[%clk 0:02:23.4]} 16. N3h2 {[%clk 0:02:16.8]} 16... Ba6
{[%clk 0:01:57.1]} 17. Be3 {[%clk 0:02:13.4]} 17... Bxf1 {[%clk 0:01:44.6]} 18.
Bxf2 {[%clk 0:02:01.3]} 18... Bxg2+ {[%clk 0:01:35.3]} 19. Kxg2 {[%clk
0:02:02.2]} 19... Qh5 {[%clk 0:01:35.6]} 20. Rh1 {[%clk 0:01:51.4]} 20... Rf6
{[%clk 0:00:55.4]} 21. Qb3+ {[%clk 0:01:44.7]} 21... Kh8 {[%clk 0:00:52.8]} 22.
Raf1 {[%clk 0:01:12.8]} 22... Raf8 {[%clk 0:00:49.4]} 23. Qc4 {[%clk 0:00:51.1]}
23... Qh3+ {[%clk 0:00:49.4]} 24. Kg1 {[%clk 0:00:51]} 24... Rxf2 {[%clk
0:00:40.8]} 25. Rxf2 {[%clk 0:00:51.6]} 25... Qxg3+ {[%clk 0:00:40.3]} 26. Rg2
{[%clk 0:00:51.3]} 26... Qe3+ {[%clk 0:00:37.4]} 27. Rf2 {[%clk 0:00:49.4]}
27... Qxf2# {[%clk 0:00:35.9]} 0-1

[Event "Early-Titled-Tuesday-Blitz-March-12-2024"]
[Site "Chess.com"]
[Date "2024.03.12"]
[Round "2"]
[White "Airquake"]
[Black "Sam_ChessMood"]
[Result "0-1"]
[WhiteElo "2657"]
[BlackElo "2958"]
[TimeControl "180+1"]
[EndTime "8:16:11 PDT"]
[Termination "Sam_ChessMood won on time"]

1. b3 {[%clk 0:03:00.9]} 1... e5 {[%clk 0:02:58.4]} 2. Bb2 {[%clk 0:03:01.2]}
2... Nc6 {[%clk 0:02:58.8]} 3. g3 {[%clk 0:02:59.1]} 3... d5 {[%clk 0:02:56.1]}
4. Bg2 {[%clk 0:02:59.4]} 4... Nf6 {[%clk 0:02:55.6]} 5. e3 {[%clk 0:02:59.7]}
5... Bd6 {[%clk 0:02:52]} 6. d4 {[%clk 0:02:59.8]} 6... exd4 {[%clk 0:02:49.7]}
7. exd4 {[%clk 0:03:00.2]} 7... O-O {[%clk 0:02:49.8]} 8. Ne2 {[%clk 0:03:00.1]}
8... Re8 {[%clk 0:02:49.8]} 9. O-O {[%clk 0:03:00.2]} 9... Bg4 {[%clk
0:02:47.6]} 10. f3 {[%clk 0:03:00.5]} 10... Bf5 {[%clk 0:02:46.8]} 11. Nbc3
{[%clk 0:02:16.8]} 11... h5 {[%clk 0:02:45.7]} 12. Qd2 {[%clk 0:02:08.5]} 12...
h4 {[%clk 0:02:42.6]} 13. Qg5 {[%clk 0:02:05.9]} 13... Bxc2 {[%clk 0:02:31.8]}
14. Qxh4 {[%clk 0:01:58.1]} 14... Nb4 {[%clk 0:02:31.5]} 15. Bc1 {[%clk
0:01:46.7]} 15... Bd3 {[%clk 0:02:27.6]} 16. Rf2 {[%clk 0:01:13.1]} 16... Nc2
{[%clk 0:02:27]} 17. Rb1 {[%clk 0:01:13.3]} 17... Ne3 {[%clk 0:02:27.2]} 18.
Bxe3 {[%clk 0:01:03.5]} 18... Bxb1 {[%clk 0:02:10.1]} 19. Bg5 {[%clk 0:01:03.7]}
19... Bh7 {[%clk 0:02:09.7]} 20. Nxd5 {[%clk 0:01:03.8]} 20... Be7 {[%clk
0:02:10.1]} 21. Nxe7+ {[%clk 0:00:56.8]} 21... Qxe7 {[%clk 0:02:10.3]} 22. Nf4
{[%clk 0:00:57]} 22... Qd6 {[%clk 0:02:10.1]} 23. Bxf6 {[%clk 0:00:32.5]} 23...
Qxf6 {[%clk 0:02:07.7]} 24. Qxf6 {[%clk 0:00:32.5]} 24... gxf6 {[%clk
0:02:08.4]} 25. Nd5 {[%clk 0:00:33.1]} 25... Re1+ {[%clk 0:02:08.3]} 26. Rf1
{[%clk 0:00:26.2]} 26... Rxf1+ {[%clk 0:02:07.5]} 27. Bxf1 {[%clk 0:00:25.7]}
27... Rd8 {[%clk 0:02:02.5]} 28. Nxf6+ {[%clk 0:00:19.3]} 28... Kg7 {[%clk
0:02:02.8]} 29. Nxh7 {[%clk 0:00:15.2]} 29... Kxh7 {[%clk 0:02:03.7]} 30. Bd3+
{[%clk 0:00:13.2]} 30... Kg7 {[%clk 0:02:03.7]} 31. Kf2 {[%clk 0:00:08.8]} 31...
Rxd4 {[%clk 0:02:03.3]} 32. Ke3 {[%clk 0:00:09.7]} 32... c5 {[%clk 0:01:57.2]}
33. h4 {[%clk 0:00:09.6]} 33... a5 {[%clk 0:01:46.1]} 34. a4 {[%clk 0:00:07.3]}
34... Rb4 {[%clk 0:01:45.1]} 35. Bc4 {[%clk 0:00:02.7]} 35... b5 {[%clk
0:01:45.2]} 36. axb5 {[%clk 0:00:03.3]} 36... a4 {[%clk 0:01:45.3]} 37. Bd3
{[%clk 0:00:02.8]} 37... a3 {[%clk 0:01:43]} 0-1

[Event "Early-Titled-Tuesday-Blitz-March-12-2024"]
[Site "Chess.com"]
[Date "2024.03.12"]
[Round "2"]
[White "RamonManon0g"]
[Black "ril1997"]
[Result "0-1"]
[WhiteElo "2417"]
[BlackElo "2731"]
[TimeControl "180+1"]
[EndTime "8:16:11 PDT"]
[Termination "ril1997 won by resignation"]

1. e4 {[%clk 0:03:00.9]} 1... e5 {[%clk 0:02:59.3]} 2. Nf3 {[%clk 0:03:01.2]}
2... Nc6 {[%clk 0:02:59.1]} 3. Bc4 {[%clk 0:03:01.3]} 3... Bc5 {[%clk
0:02:58.3]} 4. c3 {[%clk 0:03:01.1]} 4... Nf6 {[%clk 0:02:57.5]} 5. d4 {[%clk
0:03:01.4]} 5... exd4 {[%clk 0:02:57.5]} 6. e5 {[%clk 0:03:02.3]} 6... d5 {[%clk
0:02:56.1]} 7. Bb5 {[%clk 0:03:02.2]} 7... Ne4 {[%clk 0:02:56.6]} 8. cxd4 {[%clk
0:03:02.5]} 8... Bb6 {[%clk 0:02:57.2]} 9. Nc3 {[%clk 0:03:02.4]} 9... O-O
{[%clk 0:02:57.3]} 10. Be3 {[%clk 0:03:02.6]} 10... Bg4 {[%clk 0:02:57.5]} 11.
Qc2 {[%clk 0:03:02.9]} 11... Nb4 {[%clk 0:02:54]} 12. Qb3 {[%clk 0:02:54.6]}
12... a5 {[%clk 0:02:54.1]} 13. O-O {[%clk 0:02:48.3]} 13... c6 {[%clk
0:02:53.1]} 14. Be2 {[%clk 0:02:46.6]} 14... f5 {[%clk 0:02:43.1]} 15. a3 {[%clk
0:01:59.4]} 15... Na6 {[%clk 0:02:42.5]} 16. Bxa6 {[%clk 0:01:55.3]} 16... Rxa6
{[%clk 0:02:42]} 17. Nxe4 {[%clk 0:01:55.3]} 17... fxe4 {[%clk 0:02:42.9]} 18.
Nd2 {[%clk 0:01:55.3]} 18... a4 {[%clk 0:02:41.9]} 19. Qa2 {[%clk 0:01:48.1]}
19... Ba5 {[%clk 0:02:39.9]} 20. Nxe4 {[%clk 0:01:45.7]} 20... Ra8 {[%clk
0:02:36.5]} 21. b4 {[%clk 0:01:41.3]} 21... axb3 {[%clk 0:02:32.7]} 22. Qxb3
{[%clk 0:01:41.1]} 22... b5 {[%clk 0:02:32.1]} 23. Rac1 {[%clk 0:01:28.8]} 23...
Ra6 {[%clk 0:02:26.3]} 24. Bg5 {[%clk 0:01:24]} 24... Qe8 {[%clk 0:02:22]} 25.
Nc5 {[%clk 0:01:17.7]} 25... Rb6 {[%clk 0:02:19.5]} 26. Qg3 {[%clk 0:01:16.9]}
26... Be2 {[%clk 0:02:18]} 27. Bh6 {[%clk 0:01:07.9]} 27... Qg6 {[%clk
0:02:12.9]} 28. Bg5 {[%clk 0:00:55.9]} 28... Bxf1 {[%clk 0:02:12.3]} 29. Rxf1
{[%clk 0:00:46.7]} 29... h6 {[%clk 0:02:10.9]} 30. Be7 {[%clk 0:00:42.3]} 30...
Qxg3 {[%clk 0:02:11.8]} 31. hxg3 {[%clk 0:00:34.7]} 31... Re8 {[%clk 0:02:07.1]}
32. Bd6 {[%clk 0:00:32.8]} 32... b4 {[%clk 0:02:07.7]} 33. Nb3 {[%clk 0:00:28]}
33... Rb5 {[%clk 0:02:02.5]} 34. a4 {[%clk 0:00:27.2]} 34... Rb6 {[%clk
0:01:57.9]} 35. Nxa5 {[%clk 0:00:26.6]} 35... Ra6 {[%clk 0:01:56.8]} 36. Bxb4
{[%clk 0:00:21.7]} 36... Rb8 {[%clk 0:01:55.8]} 37. Bd2 {[%clk 0:00:19.7]} 37...
Rb2 {[%clk 0:01:55.6]} 38. Bc3 {[%clk 0:00:19.9]} 38... Rc2 {[%clk 0:01:55.6]}
39. Bb4 {[%clk 0:00:18.6]} 39... g6 {[%clk 0:01:50.7]} 40. Rd1 {[%clk
0:00:12.7]} 40... Ra2 {[%clk 0:01:50.5]} 41. e6 {[%clk 0:00:12.3]} 41... Rxa4
{[%clk 0:01:49]} 42. Be1 {[%clk 0:00:11.2]} 42... R6xa5 {[%clk 0:01:47.1]} 43.
Rc1 {[%clk 0:00:09.9]} 43... Ra6 {[%clk 0:01:46.7]} 44. Ra1 {[%clk 0:00:09.4]}
44... Rxa1 {[%clk 0:01:46.7]} 0-1